Cogmind - Beta 13 @@@ ROGUE MODE // 2024.05.10 @ 20:32:33 Player: GayPredator Result: Destroyed by Y-45 Defender with Beam Rifle Performance ------------- Evolutions (0) 0 Regions Visited (2) 400 Robots Destroyed (31) 155 Value Destroyed (556) 556 Prototype IDs (2) 40 Alien Tech Used (0) 0 Bonus (0) 0 TOTAL SCORE: 1151 Bonus ------- None Cogmind --------- Core Integrity 0/250 Matter 298/300 Energy 100/100 System Corruption 0% Temperature Cool (13) Movement Core (350) Ox6 Location -10/Mines Parts ------- > --- POWER (1) -------- (None) > --- PROPULSION (2) --- (None) > --- UTILITY (2) ------ Large Storage Unit > --- WEAPON (2) ------- Light Assault Rifle > --- INVENTORY (15) --- Ion Engine Light Nuclear Core Wheel Wheel Improved Heat Sink Large Storage Unit Structural Scanner Improved Terrain Scanner ECM Suite Medium Laser Light Assault Rifle Grenade Launcher Datajack Peak State ------------ > --- POWER ------------ Light Nuclear Core > --- PROPULSION ------- Light Treads Light Treads > --- UTILITY ---------- Large Storage Unit Improved Terrain Scanner > --- WEAPON ----------- Light Assault Rifle Light Assault Rifle > --- INVENTORY -------- Ion Engine Light Treads Wheel Compact Wheel Heat Sink Large Storage Unit Structural Scanner ECM Suite Weapon Shielding Medium Laser Light Assault Rifle Grenade Launcher [Rating: 12] Favorites ----------- Power Ion Engine Engine Ion Engine Power Core Light Nuclear Core Propulsion Light Treads Treads Light Treads Wheel Wheel Utility Large Storage Unit Device Structural Scanner Storage Large Storage Unit Protection Weapon Shielding Weapon Light Assault Rifle Energy Gun Medium Laser Ballistic Gun Light Assault Rifle Launcher Grenade Launcher Build | -11 -10 -10 ------- Run | Yrd Mat Min Slots Evolved . | . . . Power . | . . . Propulsion . | . . . Utility . | . . . Weapon . | . . . Parts Attached 30 | 9 10 11 Power 4 | 1 2 1 Engine 3 | 1 1 1 Core 1 | . 1 . Reactor . | . . . Propulsion 6 | 4 1 1 Treads 4 | 2 1 1 Leg . | . . . Wheel 2 | 2 . . Hover . | . . . Flight . | . . . Utility 11 | 2 5 4 Device 6 | 1 3 2 Storage 2 | 1 1 . Processor . | . . . Hackware . | . . . Protection 3 | . 1 2 Artifact . | . . . Weapon 9 | 2 2 5 Energy Gun 2 | 1 . 1 Energy Cannon . | . . . Ballistic Gun 6 | 1 2 3 Ballistic Cannon . | . . . Launcher 1 | . . 1 Special Weapon . | . . . Impact Weapon . | . . . Slashing Weapon . | . . . Piercing Weapon . | . . . Special Melee Weapon . | . . . Unidentified Prototypes . | . . . Parts Lost 9 | . 2 7 Power 3 | . 2 1 Propulsion 3 | . . 3 Utility 1 | . . 1 Weapon 2 | . . 2 Highest Loss Streak 5 | . 1 5 To Critical Strikes 1 | . . 1 Average Slot Usage (%) 97 | . 96 99 Engine 8 | . 8 9 Core 3 | . 2 4 Treads 27 | . 28 27 Device 8 | . 8 7 Storage 14 | . 14 14 Protection 5 | . 5 6 Ballistic Gun 26 | . 26 26 Naked Turns . | . . . Heaviest Build 32 | 14 28 32 Greatest Support 40 | 40 40 40 Greatest Overweight (x) 1 | . . 1 Average Overweight (x) . | . . . Largest Inventory Capacity 15 | 8 15 15 Average Capacity 11 | 7 10 15 Most Carried 14 | 3 12 14 Average Carried 9 | 2 8 12 Final Capacity 15 | 8 15 15 Final Carried 13 | 3 12 13 Class Distribution -------------------- 100% | Mutant Dominant Class ---------------- Mutant | -10/Materials Mutant | -10/Mines Resources | -11 -10 -10 ----------- Run | Yrd Mat Min Matter Collected 748 | 316 191 241 Remotely . | . . . Salvage Created 824 | 142 400 282 Parts 53 | 8 30 15 Haulers Intercepted . | . . . Recyclers Shooed . | . . . Parts Field Recycled . | . . . Retrieved Matter . | . . . Parts Self-Destructed . | . . . Prevented . | . . . Kills | -11 -10 -10 ------- Run | Yrd Mat Min Combat Hostiles Destroyed 24 | . 13 11 Guns 21 | . 13 8 AOE 3 | . . 3 Classes Destroyed 7 | 2 4 1 Worker 2 | . 1 1 Tunneler 5 | 3 . 2 Recycler 1 | 1 . . Watcher 1 | . 1 . Swarmer 11 | . 6 5 Grunt 11 | . 7 4 Assembled 2 | . . 2 Best Kill Streak 6 | 2 6 6 Combat Bots Only 6 | . 6 3 Max Kills in Single Turn 4 | 1 1 4 Gunslinging . | . . . Exploded 2 | . . 2 Melee . | . . . Uniques/NPCs Destroyed . | . . . Combat | -11 -10 -10 -------- Run | Yrd Mat Min Hostile Shots Fired 128 | . 50 78 Missed 28 | . 12 16 Damage Taken 1201 | . 417 784 Core 262 | . 65 197 Absorbed by Shields . | . . . Redirected to Shielding 51 | . 18 33 Core Remaining (%) 100 | 100 . . Volleys Fired 128 | 26 53 49 Largest 2 | 2 2 2 Hottest 70 | 70 70 50 Shots Fired 242 | 51 106 85 Gun 234 | 51 106 77 Cannon . | . . . Launcher 8 | . . 8 Special . | . . . Kinetic 193 | 26 95 72 Thermal 41 | 25 11 5 Explosive 8 | . . 8 Electromagnetic . | . . . Robot Hit Streak 11 | 6 11 8 Robot Miss Streak 4 | 3 4 4 Penetration Max . | . . . Secondary Targets 3 | . 2 1 Max Gunslinging Chain 1 | . 1 1 Shots Hit Robots 143 | 32 67 44 Core Hits 62 | 7 28 27 Critical Kills 1 | . 1 . Critical Parts Destroyed . | . . . Critical Strikes 4 | . 4 . Burn 3 | . 3 . Destroy 1 | . 1 . Melee Attacks . | . . . Impact . | . . . Slashing . | . . . Piercing . | . . . Sneak Attacks . | . . . Combat Hostiles . | . . . Follow-up Attacks . | . . . Damage Inflicted 1542 | 315 568 659 Guns 1230 | 315 568 347 Cannons . | . . . Explosions 296 | . . 296 Melee . | . . . Ramming 16 | . . 16 Kinetic 969 | 138 484 347 Thermal 261 | 177 84 . Explosive 296 | . . 296 Electromagnetic . | . . . Impact . | . . . Slashing . | . . . Piercing . | . . . Highest Corruption . | . . . Average Corruption . | . . . Corruption Purged . | . . . Corruption Blocked . | . . . Overload Shots . | . . . Overflow Damage . | . . . Projectiles . | . . . Explosions . | . . . Melee . | . . . Knockbacks . | . . . Impact . | . . . Kinetic . | . . . Secondary . | . . . Self-Inflicted Damage 72 | . . 72 Shots 3 | . . 3 Rammed 3 | . . 3 Targets Rammed 3 | . . 3 Kicked . | . . . Crushed . | . . . Highest Temperature 150 | 150 120 70 Average Temperature 30 | 44 34 17 Received Heat Transfer 400 | . 114 286 Siege Activations . | . . . Robots Corrupted . | . . . Combat Hostiles . | . . . Parts Fried . | . . . Impact Corruptions . | . . . Robots Melted . | . . . Combat Hostiles . | . . . Parts Melted 4 | . 4 . Heat Transferred 999 | 518 481 . Parts Sabotaged . | . . . Parts Stolen . | . . . Parts Stripped . | . . . Power Chain Reactions . | . . . Alert | -11 -10 -10 ------- Run | Yrd Mat Min Peak Influence 189 | 20 189 185 Initial 22 | . 13 22 Average 76 | 8 77 93 Maximum Alert Level . | . . . Low Security (%) 100 | 100 100 100 Level 1 . | . . . Level 2 . | . . . Level 3 . | . . . Level 4 . | . . . Level 5 . | . . . High Security . | . . . Max Security . | . . . Squads Dispatched 2 | . 2 . Investigation 1 | . 1 . Extermination . | . . . Reinforcement 1 | . 1 . Assault . | . . . Garrison . | . . . Intercept . | . . . Searches Triggered . | . . . Construction Impeded . | . . . Haulers Reinforced . | . . . Active Scanning Responses . | . . . Cargo Convoy Interrupts . | . . . Stealth | -11 -10 -10 --------- Run | Yrd Mat Min Distress Signals 2 | . 2 . Communications Jammed . | . . . Distress Signals . | . . . Times Spotted 35 | . 19 16 Peak Tracking Total 6 | . 6 3 Tactical Retreats 4 | . 2 2 Traps | -11 -10 -10 ------- Run | Yrd Mat Min Traps Triggered 2 | . 2 . Indirectly . | . . . Trap Hack Attempts . | . . . Triggered . | . . . Disarmed . | . . . Reprogrammed . | . . . Reused . | . . . Traps Extracted . | . . . Installed . | . . . Triggered . | . . . Machines | -11 -10 -10 ---------- Run | Yrd Mat Min Machines Disabled . | . . . Max in Single Turn . | . . . Machines Repaired . | . . . Machines Dismantled . | . . . Machines Sabotaged . | . . . Overloaded Fab Kills . | . . . Hacking | -11 -10 -10 --------- Run | Yrd Mat Min Machines Accessed 5 | . 5 . Terminals 4 | . 4 . Fabricators . | . . . Repair Stations . | . . . Recycling Units 1 | . 1 . Scanalyzers . | . . . Garrison Access . | . . . Total Hacks 13 | . 13 . Successful 7 | . 7 . Failed 6 | . 6 . Catastrophic . | . . . Database Lockouts . | . . . Manual 4 | . 4 . Terminals 11 | . 11 . Fabricators . | . . . Repair Stations . | . . . Recycling Units 2 | . 2 . Scanalyzers . | . . . Garrison Access . | . . . Terminal Hacks 3 | . 3 . Robot Analysis 1 | . 1 . Prototype ID Bank 1 | . 1 . Branch Access Points 1 | . 1 . Fabricator Hacks . | . . . Repair Station Hacks . | . . . Recycling Unit Hacks 2 | . 2 . Report Inventory 1 | . 1 . Retrieve Components 1 | . 1 . Scanalyzer . | . . . Garrison Access Hacks . | . . . Unauthorized Hacks 2 | . 2 . Terminals 2 | . 2 . Botnet 2 | . 2 . Fabricators . | . . . Repair Stations . | . . . Recycling Units . | . . . Scanalyzers . | . . . Garrison Access . | . . . Data Cores Recovered . | . . . Used . | . . . Hacking Detections 4 | . 4 . Full Trace Events . | . . . Feedback Events . | . . . Feedback Blocked . | . . . Robot Schematics Acquired . | . . . Robots Built . | . . . Authchips . | . . . Time . | . . . Total Robot Build Rating . | . . . Part Schematics Acquired . | . . . Parts Built . | . . . Authchips . | . . . Time . | . . . Total Part Build Rating . | . . . Parts Repaired . | . . . Time . | . . . Parts Recycled . | . . . Recycled Matter . | . . . Retrieved Matter . | . . . Retrieved Components 10 | . 10 . Parts Scanalyzed . | . . . Part Schematics Acquired . | . . . Parts Damaged . | . . . Bothacking | -11 -10 -10 ------------ Run | Yrd Mat Min Used RIF Installer . | . . . Robots Hacked . | . . . Non-combat . | . . . Combat . | . . . Robot Hacks Applied . | . . . Relay Couplers Released . | . . . Fabnet Peak Effective % . | . . . Robots Rewired . | . . . Allies Hacked . | . . . Hacks Repelled . | . . . Allies | -11 -10 -10 -------- Run | Yrd Mat Min Total Allies . | . . . Largest Group . | . . . Highest-Rated Group . | . . . Highest-Rated Ally . | . . . Total Orders . | . . . Ally Attacks . | . . . Total Damage . | . . . Kills . | . . . Allies Corrupted . | . . . Allies Melted . | . . . Intel | -11 -10 -10 ------- Run | Yrd Mat Min Robot Analysis Total 1 | . 1 . Derelict Logs Recovered 1 | . . 1 Drone Launches . | . . . Drone Recoveries . | . . . Exploration | -11 -10 -10 ------------- Run | Yrd Mat Min Turns Passed 1915 | 226 878 811 Spaces Moved 905 | 88 421 396 Core 1 | 1 . . Treads 900 | 83 421 396 Legs . | . . . Wheels 4 | 4 . . Hover . | . . . Flight . | . . . Fastest Speed 50 | 50 160 160 Average Speed 159 | 155 160 160 Slowest Speed 240 | 160 160 240 Overloaded Moves . | . . . Propulsion Burnouts . | . . . Robots Hopped . | . . . Cave-ins Triggered . | . . . Exploration Rate (%) 54 | 7 64 91 Regions Visited 2 Branch Regions 1 Pre-discovered Areas . | . . . Known Exits Taken 1 | . 1 . Unknown Exits Taken 1 | 1 . . Scrap Searched 1 | . . 1 Spaces Dug . | . . . Terrain Destroyed 27 | . . 27 Melee . | . . . Projectile . | . . . AOE 27 | . . 27 Terrain Rammed . | . . . Walls Destroyed . | . . . Machines Disabled . | . . . Actions | -11 -10 -10 --------- Run | Yrd Mat Min Total 1164 | 128 538 498 Wait 67 | 3 38 26 Move 903 | 87 420 396 Hop . | . . . Pick Up 17 | 1 9 7 Fast Attach 16 | 9 6 1 Attach 2 | . . 2 Detach 6 | 2 3 1 Swap 12 | . 4 8 Drop 10 | . 5 5 Fire 128 | 26 53 49 Melee . | . . . Ram . | . . . Kick . | . . . Crush 3 | . . 3 Escape Stasis . | . . . Rewire . | . . . Trap . | . . . Miscellaneous . | . . . Route ------- -11/Scrapyard -10/Materials (discovered 3 exits: [*Mat x2] / *Min) -10/Mines (discovered 1 exit: [*Mat]) History --------- Turn | Location | Event 8 | -11/Scrapyard | Discovered new exit (range 15) 227 | -11/Scrapyard | Entered Materials 314 | -10/Materials | Build established: Mutant 385 | -10/Materials | Discovered new exit (range 16) 688 | -10/Materials | Identified exit to Mines 1039 | -10/Materials | Discovered new exit (range 11) 1105 | -10/Materials | Entered Mines 1138 | -10/Mines | Met a Derelict bent on vengeance 1190 | -10/Mines | Discovered new exit (range 5) 1234 | -10/Mines | Excavation squad dispatched 1234 | -10/Mines | A large section of the Mines collapsed 1744 | -10/Mines | Core integrity fell below 50% 1907 | -10/Mines | Core integrity fell below 20% 1916 | -10/Mines | Destroyed by Y-45 Defender with Beam Rifle Last Messages --------------- 01740_ Lgt. Treads destroyed. 01746_ S-10 Pest destroyed. 01746_ Switching to secondary target: S-10 Pest. 01754_ S-10 Pest destroyed. 01757_ Acquired 12 matter. 01762_ Acquired 10 matter. 01766_ Acquired Lgt. Ion Engine. 01796_ as-20209 destroyed. 01803_ Acquired 12 matter. 01813_ Dropped Lgt. Ion Engine. 01813_ Acquired Lgt. Nuclear Core. 01837_ Slammed into T-07 Excavator. 01862_ Slammed into K-01 Serf. 01880_ Slammed into T-07 Excavator. 01904_ Lgt. Treads destroyed. 01904_ Lgt. Angular Momentum Engine destroyed. 01907_ Critical hit (Burn: +37). 01909_ Lgt. Treads destroyed. 01910_ Weapon Shielding destroyed. 01912_ Lgt. Assault Rifle destroyed. Map ----- +----------------------------------------------------+ | | | | | | | | | | | | | | | | | | | | | | | | | | | | | | | | | | | | | | | ????????????????????????????????????????? | | ???????????###?##########???????????????? | | ??????????##!!## ####????????????? | | ??????????#"[! # % #????????????? | | ??????????# Y Y/ ## #????????????? | | ??????????# / ## #????????????? | | ??????????#"[! #@ ## #????????????? | | ??????????##/!## ## #????????????? | | ???????????###?## ## #????????????? | | ????????????????# ## #????????????? | | ????????????????########## #????????????? | | ?????????????????????????# #???????????## | | ?????????????????????????# #???????????## | | ?????????????????????????#%######??????## | | ?????????????????????????# #???#??## | | ?????????????????????????###### #???# ?## | | ???????########???????????????# ##### ### | | ???????# ##########??????# = | | ???????#""" #??????# ####### # | | ???????#""" ####### #??????# #?????# # | | ???????#""" #?????# #??????# ####### # | | ???????# #?????# #??????# ## | | ???????#####[##?????# ######## ## | | ???????????#%####???# ## ## ## | | ???????????# #???# *## % ### | | ???????????### #???#######%=##### #?## | | ?????????????# #?????????# %#???# #??## | | ?????????????# #?????????# #???# #???# | | ?????????##??# #?????????# ##### #???? | | ????????## ### ##???????## ## #???? | | ????????# #???????# ##??? | +----------------------------------------------------+ Best States ------------- Heat Dissipation 25 Energy Generation 18 Energy Capacity 250 Matter Stores 300 Matter Capacity 300 Sight Range 16 Terrain Scan Range 16 Terrain Scan Density 10 ECM Strength 1 Weapon Shielding 33 Evasion (%) 40 Recoil Reduction 2 Item Schematics ----------------- None Robot Schematics ------------------ None Fabricated ------------ Nothing Alien Tech Used ----------------- None Achievements -------------- None Challenges ------------ None Game ------ Seed LinkedAblativeDoomcannon Manual? 0 Play Time 00:19:17 Cumulative 95.2 hours Start 2024.05.10 @ 20:13:12 End 2024.05.10 @ 20:32:33 Sessions 1 Manual Loads 0 Difficulty Rogue Special Mode None Game No. 73 Rogue 34 Adventurer 32 Explorer 7 Win Type - Total 0 Types 0/0/0/0/0/0/0/0/0 Lore% 27 Gallery% 59 Achievement% 45 Wizard Run 0 Options --------- Layout 1 ASCII 0 Keyboard 0 Movement Numpad Keybinds 0 Fullscreen 1 Font 16/SmallcapsGlow Map View 50x35 Zoom Use 0% Tactical HUD 1 Map Filters NONE Filters NONE Steam SD RUN: f219e0f1-6a08-43b1-9524-913a00e0d23a